[Event "*** Titled Tuesday Blitz"]
[Site "Chess.com"]
[Date "2018.12.04"]
[Round "1"]
[White "akretchetov"]
[Black "Shahinyan_ChessMood"]
[Result "0-1"]
[WhiteElo "2353"]
[BlackElo "2668"]
[TimeControl "180+2"]
[EndTime "13:11:08 PST"]
[Termination "Shahinyan_ChessMood won by resignation"]

1. Nf3 {[%clk 0:02:58.4]} 1... e6 {[%clk 0:03:00.5]} 2. c4 {[%clk 0:02:46.8]}
2... f5 {[%clk 0:03:00.8]} 3. d3 {[%clk 0:02:38.5]} 3... Nf6 {[%clk 0:02:59.5]}
4. Nc3 {[%clk 0:02:36.2]} 4... d6 {[%clk 0:02:56.4]} 5. e4 {[%clk 0:02:35.8]}
5... fxe4 {[%clk 0:02:57.1]} 6. dxe4 {[%clk 0:02:35.2]} 6... e5 {[%clk
0:02:58.4]} 7. c5 {[%clk 0:02:26.8]} 7... Nc6 {[%clk 0:02:31.9]} 8. cxd6 {[%clk
0:02:26.9]} 8... Bxd6 {[%clk 0:02:28.3]} 9. Bc4 {[%clk 0:02:26.7]} 9... Qe7
{[%clk 0:02:27.4]} 10. Bg5 {[%clk 0:02:22.2]} 10... Be6 {[%clk 0:02:19.2]} 11.
Qb3 {[%clk 0:02:13.9]} 11... Bxc4 {[%clk 0:02:01.4]} 12. Qxc4 {[%clk 0:02:14.3]}
12... Qf7 {[%clk 0:01:57.4]} 13. Qb5 {[%clk 0:01:55.8]} 13... O-O {[%clk
0:01:34.6]} 14. O-O {[%clk 0:01:36.5]} 14... Nd4 {[%clk 0:01:23.5]} 15. Qd3
{[%clk 0:01:22.2]} 15... Nxf3+ {[%clk 0:01:18.6]} 16. Qxf3 {[%clk 0:01:22.7]}
16... Nd7 {[%clk 0:01:20.1]} 17. Qxf7+ {[%clk 0:01:21.4]} 17... Rxf7 {[%clk
0:01:22]} 18. Be3 {[%clk 0:01:11.2]} 18... a6 {[%clk 0:01:23.1]} 19. Rad1 {[%clk
0:01:09.4]} 19... h6 {[%clk 0:01:22.2]} 20. a3 {[%clk 0:01:09.1]} 20... b5
{[%clk 0:01:21.1]} 21. Nd5 {[%clk 0:01:08.6]} 21... Raf8 {[%clk 0:01:17.9]} 22.
f3 {[%clk 0:01:08.9]} 22... Nb8 {[%clk 0:01:18.4]} 23. Rc1 {[%clk 0:01:04.2]}
23... Rc8 {[%clk 0:01:14.2]} 24. Rfd1 {[%clk 0:01:03.9]} 24... Re8 {[%clk
0:01:10.8]} 25. Bc5 {[%clk 0:01:00.6]} 25... Rd8 {[%clk 0:01:00.1]} 26. Bxd6
{[%clk 0:00:48]} 26... Rxd6 {[%clk 0:01:02]} 27. Kf2 {[%clk 0:00:39.4]} 27...
Rfd7 {[%clk 0:00:57.2]} 28. Ke2 {[%clk 0:00:39.5]} 28... c6 {[%clk 0:00:55.1]}
29. Ne7+ {[%clk 0:00:39.8]} 29... Kf7 {[%clk 0:00:53.1]} 30. Rxd6 {[%clk
0:00:40.7]} 30... Rxd6 {[%clk 0:00:50.7]} 31. Nf5 {[%clk 0:00:40.3]} 31... Rd7
{[%clk 0:00:49.9]} 32. Ne3 {[%clk 0:00:40.5]} 32... Ke6 {[%clk 0:00:50.1]} 33.
g3 {[%clk 0:00:40.4]} 33... Rc7 {[%clk 0:00:51.1]} 34. b4 {[%clk 0:00:40]} 34...
Nd7 {[%clk 0:00:50.7]} 35. Nd5 {[%clk 0:00:39.2]} 35... Rc8 {[%clk 0:00:51.5]}
36. Ne3 {[%clk 0:00:36.2]} 36... c5 {[%clk 0:00:52.1]} 37. Nd5 {[%clk
0:00:34.9]} 37... c4 {[%clk 0:00:50.1]} 38. Ke3 {[%clk 0:00:35.4]} 38... Nf6
{[%clk 0:00:49.3]} 39. Nc3 {[%clk 0:00:34.4]} 39... Rd8 {[%clk 0:00:49.4]} 40.
Rd1 {[%clk 0:00:35.5]} 40... Rxd1 {[%clk 0:00:40.8]} 41. Nxd1 {[%clk 0:00:36.3]}
41... Nd7 {[%clk 0:00:39.9]} 42. Nc3 {[%clk 0:00:36]} 42... Nb8 {[%clk
0:00:41.3]} 43. f4 {[%clk 0:00:35.3]} 43... exf4+ {[%clk 0:00:39]} 44. gxf4
{[%clk 0:00:35.7]} 44... Nc6 {[%clk 0:00:40.9]} 45. h3 {[%clk 0:00:33.8]} 45...
g5 {[%clk 0:00:42]} 46. Nd5 {[%clk 0:00:32.4]} 46... gxf4+ {[%clk 0:00:24.4]}
47. Nxf4+ {[%clk 0:00:32.6]} 47... Ke5 {[%clk 0:00:24.8]} 48. Ng6+ {[%clk
0:00:33.2]} 48... Kf6 {[%clk 0:00:26.2]} 49. Nf4 {[%clk 0:00:34.3]} 49... Ke5
{[%clk 0:00:26.6]} 50. Ng6+ {[%clk 0:00:34.9]} 50... Ke6 {[%clk 0:00:27.4]} 51.
Nf4+ {[%clk 0:00:35.4]} 51... Kf6 {[%clk 0:00:28.9]} 52. Nd5+ {[%clk 0:00:35.4]}
52... Ke5 {[%clk 0:00:30.3]} 53. Nc7 {[%clk 0:00:36.2]} 53... Nd4 {[%clk
0:00:29.3]} 54. Nxa6 {[%clk 0:00:35.9]} 54... Nc2+ {[%clk 0:00:30.5]} 55. Kf3
{[%clk 0:00:34.5]} 55... Nxa3 {[%clk 0:00:31.2]} 56. Nc7 {[%clk 0:00:33.2]}
56... Kd4 {[%clk 0:00:25.2]} 57. Nd5 {[%clk 0:00:26.9]} 57... c3 {[%clk
0:00:24.5]} 58. Ke2 {[%clk 0:00:27.6]} 58... Nc4 {[%clk 0:00:20]} 59. Nf4 {[%clk
0:00:17.5]} 59... Kxe4 {[%clk 0:00:19.1]} 60. Nd3 {[%clk 0:00:18.5]} 60... Kd4
{[%clk 0:00:18.8]} 61. Nc1 {[%clk 0:00:19.1]} 61... c2 {[%clk 0:00:19.6]} 62.
Na2 {[%clk 0:00:19.8]} 62... h5 {[%clk 0:00:18.7]} 63. h4 {[%clk 0:00:21]} 63...
Ke4 {[%clk 0:00:17.1]} 64. Nc1 {[%clk 0:00:21.5]} 64... Kd4 {[%clk 0:00:17.3]}
65. Na2 {[%clk 0:00:22.4]} 65... Ke4 {[%clk 0:00:13.4]} 66. Nc1 {[%clk
0:00:22.7]} 66... Kf4 {[%clk 0:00:14.2]} 67. Kd3 {[%clk 0:00:23.4]} 67... Na3
{[%clk 0:00:15.4]} 68. Kc3 {[%clk 0:00:23.9]} 68... Kg4 {[%clk 0:00:16.9]} 69.
Kb3 {[%clk 0:00:25.2]} 69... Nc4 {[%clk 0:00:18.3]} 70. Kxc2 {[%clk 0:00:26.2]}
70... Kxh4 {[%clk 0:00:19.9]} 71. Ne2 {[%clk 0:00:26]} 71... Kg4 {[%clk
0:00:21.2]} 72. Kd3 {[%clk 0:00:25.5]} 72... h4 {[%clk 0:00:20.9]} 73. Ng1
{[%clk 0:00:26.2]} 73... h3 {[%clk 0:00:19.6]} 74. Nxh3 {[%clk 0:00:26.7]} 74...
Kxh3 {[%clk 0:00:21]} 75. Kd4 {[%clk 0:00:27.5]} 75... Kg4 {[%clk 0:00:22.2]}
76. Kc5 {[%clk 0:00:28.6]} 76... Na3 {[%clk 0:00:23.4]} 77. Kb6 {[%clk
0:00:28.7]} 77... Kf4 {[%clk 0:00:24.2]} 78. Kc5 {[%clk 0:00:29.3]} 78... Ke4
{[%clk 0:00:25.8]} 79. Kd6 {[%clk 0:00:28.4]} 79... Kd3 {[%clk 0:00:27.7]} 0-1

[Event "*** Titled Tuesday Blitz"]
[Site "Chess.com"]
[Date "2018.12.04"]
[Round "1"]
[White "LastGladiator1"]
[Black "goodnigth"]
[Result "1-0"]
[WhiteElo "2669"]
[BlackElo "2354"]
[TimeControl "180+2"]
[EndTime "13:11:32 PST"]
[Termination "LastGladiator1 won by checkmate"]

1. d4 {[%clk 0:03:01.5]} 1... Nf6 {[%clk 0:02:59]} 2. c4 {[%clk 0:03:01.2]} 2...
e6 {[%clk 0:02:59.9]} 3. Nc3 {[%clk 0:03:01.7]} 3... Bb4 {[%clk 0:03:00.3]} 4.
Nf3 {[%clk 0:02:59.6]} 4... O-O {[%clk 0:02:52.7]} 5. g3 {[%clk 0:03:00.5]} 5...
b6 {[%clk 0:02:52.1]} 6. Bg2 {[%clk 0:03:01.4]} 6... Bb7 {[%clk 0:02:53]} 7. O-O
{[%clk 0:03:02.5]} 7... Bxc3 {[%clk 0:02:47.6]} 8. bxc3 {[%clk 0:03:04.4]} 8...
d6 {[%clk 0:02:47]} 9. Qc2 {[%clk 0:03:05.5]} 9... Be4 {[%clk 0:02:46.8]} 10.
Qa4 {[%clk 0:02:55.6]} 10... Nbd7 {[%clk 0:02:46]} 11. Ne1 {[%clk 0:02:51]}
11... Bxg2 {[%clk 0:02:46.3]} 12. Nxg2 {[%clk 0:02:52.9]} 12... c5 {[%clk
0:02:46.6]} 13. Ba3 {[%clk 0:02:44.5]} 13... Qc7 {[%clk 0:02:37.4]} 14. Rac1
{[%clk 0:02:44.9]} 14... a6 {[%clk 0:02:32.3]} 15. Ne3 {[%clk 0:02:43.2]} 15...
b5 {[%clk 0:02:24.2]} 16. Qb3 {[%clk 0:02:44.1]} 16... bxc4 {[%clk 0:02:16.8]}
17. Nxc4 {[%clk 0:02:45.1]} 17... Rfb8 {[%clk 0:02:16.5]} 18. Qc2 {[%clk
0:02:26.4]} 18... d5 {[%clk 0:02:10.7]} 19. Nd2 {[%clk 0:02:27.3]} 19... Qa5
{[%clk 0:01:54.3]} 20. Bxc5 {[%clk 0:02:19.5]} 20... Nxc5 {[%clk 0:01:51.2]} 21.
dxc5 {[%clk 0:02:21.4]} 21... Qxc5 {[%clk 0:01:51.7]} 22. c4 {[%clk 0:02:20]}
22... Rc8 {[%clk 0:01:13.7]} 23. Qd1 {[%clk 0:02:18.5]} 23... Rab8 {[%clk
0:01:04.6]} 24. e3 {[%clk 0:02:05.6]} 24... Qa3 {[%clk 0:01:01.8]} 25. cxd5
{[%clk 0:01:54.4]} 25... Nxd5 {[%clk 0:01:02.1]} 26. Rxc8+ {[%clk 0:01:50.4]}
26... Rxc8 {[%clk 0:01:04]} 27. Qb3 {[%clk 0:01:51.4]} 27... Qxb3 {[%clk
0:00:52.6]} 28. axb3 {[%clk 0:01:53.3]} 28... Rc2 {[%clk 0:00:52.6]} 29. Ne4
{[%clk 0:01:46.2]} 29... h6 {[%clk 0:00:39.2]} 30. Ra1 {[%clk 0:01:45.9]} 30...
Rb2 {[%clk 0:00:40.3]} 31. Nc5 {[%clk 0:01:45.8]} 31... Nb4 {[%clk 0:00:37.9]}
32. Ra4 {[%clk 0:01:46.6]} 32... Nc2 {[%clk 0:00:32.2]} 33. Rxa6 {[%clk
0:01:45.4]} 33... Ne1 {[%clk 0:00:33.1]} 34. h4 {[%clk 0:01:39.7]} 34... Rb1
{[%clk 0:00:33.4]} 35. Kh2 {[%clk 0:01:38.1]} 35... Nf3+ {[%clk 0:00:34.4]} 36.
Kg2 {[%clk 0:01:38.9]} 36... Ne1+ {[%clk 0:00:35.1]} 37. Kh3 {[%clk 0:01:36.6]}
37... h5 {[%clk 0:00:32.4]} 38. Rb6 {[%clk 0:01:25.4]} 38... Nf3 {[%clk
0:00:32.2]} 39. Ne4 {[%clk 0:01:21.5]} 39... Ne5 {[%clk 0:00:26.7]} 40. Ng5
{[%clk 0:01:12.2]} 40... g6 {[%clk 0:00:25]} 41. Rb8+ {[%clk 0:01:10.9]} 41...
Kg7 {[%clk 0:00:25.9]} 42. Rb7 {[%clk 0:01:12.6]} 42... Rb2 {[%clk 0:00:26.8]}
43. Kg2 {[%clk 0:01:08.4]} 43... Kg8 {[%clk 0:00:21.7]} 44. Kf1 {[%clk
0:00:49.9]} 44... Rb1+ {[%clk 0:00:20.5]} 45. Kg2 {[%clk 0:00:51.2]} 45... Rb2
{[%clk 0:00:22.3]} 46. b4 {[%clk 0:00:46.3]} 46... f6 {[%clk 0:00:21.1]} 47.
Rb8+ {[%clk 0:00:38]} 47... Kg7 {[%clk 0:00:20.9]} 48. Rb7+ {[%clk 0:00:38.6]}
48... Kg8 {[%clk 0:00:20.3]} 49. Nh3 {[%clk 0:00:16.9]} 49... Nd3 {[%clk
0:00:19.8]} 50. b5 {[%clk 0:00:17.8]} 50... Kf8 {[%clk 0:00:18.1]} 51. Kf1
{[%clk 0:00:15]} 51... Ke8 {[%clk 0:00:18.5]} 52. Rg7 {[%clk 0:00:12]} 52... Ne5
{[%clk 0:00:18.4]} 53. Nf4 {[%clk 0:00:11.9]} 53... Rxb5 {[%clk 0:00:17.6]} 54.
Nxg6 {[%clk 0:00:10]} 54... Rb1+ {[%clk 0:00:19.1]} 55. Kg2 {[%clk 0:00:10.7]}
55... Ng4 {[%clk 0:00:18.5]} 56. Nf4 {[%clk 0:00:11.6]} 56... Rb2 {[%clk
0:00:18.9]} 57. Nh3 {[%clk 0:00:12.5]} 57... Nxe3+ {[%clk 0:00:17.1]} 58. Kf3
{[%clk 0:00:13.8]} 58... Nf5 {[%clk 0:00:13.2]} 59. Rh7 {[%clk 0:00:14.7]} 59...
Rb3+ {[%clk 0:00:14.3]} 60. Kg2 {[%clk 0:00:15.8]} 60... Rb5 {[%clk 0:00:15.6]}
61. Nf4 {[%clk 0:00:15]} 61... e5 {[%clk 0:00:15.7]} 62. Nxh5 {[%clk 0:00:16.3]}
62... Rb6 {[%clk 0:00:16]} 63. Kh3 {[%clk 0:00:16]} 63... Nd4 {[%clk 0:00:15.4]}
64. Kg4 {[%clk 0:00:13]} 64... Kf8 {[%clk 0:00:11.8]} 65. Rd7 {[%clk 0:00:12.3]}
65... Ke8 {[%clk 0:00:09]} 66. Ra7 {[%clk 0:00:12.2]} 66... Kf8 {[%clk
0:00:06.2]} 67. Ra5 {[%clk 0:00:04.8]} 67... Kf7 {[%clk 0:00:06.1]} 68. Ra7+
{[%clk 0:00:05.5]} 68... Kf8 {[%clk 0:00:06.8]} 69. Ng7 {[%clk 0:00:06.8]} 69...
Rb2 {[%clk 0:00:03.8]} 70. Kh5 {[%clk 0:00:05.6]} 70... Rxf2 {[%clk 0:00:04]}
71. Kg6 {[%clk 0:00:06.8]} 71... e4 {[%clk 0:00:02.9]} 72. Rf7+ {[%clk 0:00:07]}
72... Kg8 {[%clk 0:00:03.4]} 73. Re7 {[%clk 0:00:08.1]} 73... Rf5 {[%clk
0:00:04.7]} 74. Re8# {[%clk 0:00:09]} 1-0

[Event "*** Titled Tuesday Blitz"]
[Site "Chess.com"]
[Date "2018.12.04"]
[Round "1"]
[White "Andrew-FB00"]
[Black "tango_argentino"]
[Result "0-1"]
[WhiteElo "1793"]
[BlackElo "2477"]
[TimeControl "180+2"]
[EndTime "13:11:37 PST"]
[Termination "tango_argentino won on time"]

1. e4 {[%clk 0:03:01.8]} 1... e6 {[%clk 0:03:00.9]} 2. d4 {[%clk 0:03:00.4]}
2... d5 {[%clk 0:03:02]} 3. exd5 {[%clk 0:02:59.9]} 3... exd5 {[%clk 0:03:03.9]}
4. Bd3 {[%clk 0:02:59.3]} 4... c5 {[%clk 0:03:03.7]} 5. dxc5 {[%clk 0:02:57.5]}
5... Bxc5 {[%clk 0:03:05.6]} 6. Nf3 {[%clk 0:02:54.6]} 6... Nf6 {[%clk
0:03:06.2]} 7. Bg5 {[%clk 0:02:53.6]} 7... h6 {[%clk 0:02:58.2]} 8. Bh4 {[%clk
0:02:52.1]} 8... O-O {[%clk 0:02:58.9]} 9. O-O {[%clk 0:02:51.3]} 9... Bg4
{[%clk 0:02:52.1]} 10. Nbd2 {[%clk 0:02:47.7]} 10... Qb6 {[%clk 0:02:50.6]} 11.
Bxf6 {[%clk 0:02:37.1]} 11... Qxf6 {[%clk 0:02:50.8]} 12. c3 {[%clk 0:02:31.6]}
12... Nc6 {[%clk 0:02:50.8]} 13. Qb3 {[%clk 0:02:25.3]} 13... Bb6 {[%clk
0:02:43.2]} 14. Qxd5 {[%clk 0:02:15.4]} 14... Rad8 {[%clk 0:02:38.4]} 15. Qe4
{[%clk 0:02:14.5]} 15... Qg6 {[%clk 0:02:25.3]} 16. Qxg6 {[%clk 0:02:12.3]}
16... fxg6 {[%clk 0:02:27.2]} 17. Bxg6 {[%clk 0:02:11.5]} 17... Rd5 {[%clk
0:02:16.5]} 18. Be4 {[%clk 0:02:09.2]} 18... Rb5 {[%clk 0:02:16.4]} 19. Bxc6
{[%clk 0:02:05.6]} 19... bxc6 {[%clk 0:02:14.7]} 20. b3 {[%clk 0:02:05.1]} 20...
Rd5 {[%clk 0:02:06.4]} 21. h3 {[%clk 0:01:57.5]} 21... Bh5 {[%clk 0:02:02.5]}
22. c4 {[%clk 0:01:54.7]} 22... Rd6 {[%clk 0:01:58]} 23. Rae1 {[%clk 0:01:47.1]}
23... Rg6 {[%clk 0:01:46.8]} 24. Kh1 {[%clk 0:01:46]} 24... Rf5 {[%clk
0:01:35.3]} 25. Nh4 {[%clk 0:01:37.8]} 25... Rxf2 {[%clk 0:01:36.4]} 26. Nxg6
{[%clk 0:01:34.4]} 26... Rxd2 {[%clk 0:01:37.6]} 27. Ne7+ {[%clk 0:01:14.5]}
27... Kh7 {[%clk 0:01:38.3]} 28. Nxc6 {[%clk 0:01:11.4]} 28... Rxa2 {[%clk
0:01:38.5]} 29. b4 {[%clk 0:01:00.3]} 29... Be2 {[%clk 0:01:32.4]} 30. Ra1
{[%clk 0:00:33.1]} 30... Bxf1 {[%clk 0:01:21.5]} 31. Rxa2 {[%clk 0:00:32.3]}
31... Bxc4 {[%clk 0:01:23.1]} 32. Ra3 {[%clk 0:00:24.6]} 32... a6 {[%clk
0:01:21.6]} 33. Nb8 {[%clk 0:00:22.8]} 33... Bd4 {[%clk 0:01:21]} 34. Nxa6
{[%clk 0:00:21.4]} 34... Bb2 {[%clk 0:01:22.1]} 35. Ra4 {[%clk 0:00:21.4]} 35...
Bc3 {[%clk 0:01:20.9]} 36. Nc5 {[%clk 0:00:18.6]} 36... Bb5 {[%clk 0:01:20.9]}
37. Ra5 {[%clk 0:00:17.3]} 37... Be2 {[%clk 0:01:20.9]} 38. Ra7 {[%clk
0:00:17.1]} 38... Bxb4 {[%clk 0:01:20.1]} 39. Ne6 {[%clk 0:00:15]} 39... Bc3
{[%clk 0:01:21.1]} 40. Nf4 {[%clk 0:00:13.5]} 40... Bf1 {[%clk 0:01:16]} 41. Ra3
{[%clk 0:00:11.4]} 41... Be5 {[%clk 0:01:14.4]} 42. Rf3 {[%clk 0:00:07.9]} 42...
Bc4 {[%clk 0:01:12.3]} 43. Kg1 {[%clk 0:00:07.1]} 43... Bd4+ {[%clk 0:01:12.2]}
44. Kh2 {[%clk 0:00:06.4]} 44... Be5 {[%clk 0:01:12.5]} 45. g3 {[%clk
0:00:07.1]} 45... Ba6 {[%clk 0:01:09.9]} 46. Re3 {[%clk 0:00:07.3]} 46... Bd4
{[%clk 0:01:05.6]} 47. Re4 {[%clk 0:00:06.1]} 47... Bb2 {[%clk 0:01:02.7]} 48.
Re7 {[%clk 0:00:05.3]} 48... Bc4 {[%clk 0:00:55]} 49. Rc7 {[%clk 0:00:05.2]}
49... Ba6 {[%clk 0:00:46.5]} 50. Ra7 {[%clk 0:00:05.2]} 50... Bf1 {[%clk
0:00:44.7]} 51. Ra2 {[%clk 0:00:05.2]} 51... Bc3 {[%clk 0:00:41.4]} 52. Rc2
{[%clk 0:00:03.9]} 52... Be5 {[%clk 0:00:36.7]} 53. Rc1 {[%clk 0:00:04.6]} 53...
Ba6 {[%clk 0:00:36.2]} 54. Re1 {[%clk 0:00:04.3]} 54... Bf6 {[%clk 0:00:32]} 55.
Re6 {[%clk 0:00:04.4]} 55... Bb7 {[%clk 0:00:27.1]} 56. Nh5 {[%clk 0:00:04]}
56... Ba1 {[%clk 0:00:23.6]} 57. Re7 {[%clk 0:00:04.9]} 57... Bf3 {[%clk
0:00:23.9]} 58. Nf4 {[%clk 0:00:04.5]} 58... Bf6 {[%clk 0:00:23.7]} 59. Re3
{[%clk 0:00:04.9]} 59... Bc6 {[%clk 0:00:23.2]} 60. Ne6 {[%clk 0:00:05.9]} 60...
h5 {[%clk 0:00:22.7]} 61. Nf4 {[%clk 0:00:06.3]} 61... Kh6 {[%clk 0:00:23.4]}
62. h4 {[%clk 0:00:06.9]} 62... Bd7 {[%clk 0:00:24]} 63. Rd3 {[%clk 0:00:06.7]}
63... Bg4 {[%clk 0:00:25]} 64. Re3 {[%clk 0:00:07.4]} 64... Kh7 {[%clk
0:00:26.4]} 65. Rd3 {[%clk 0:00:06.3]} 65... Kg8 {[%clk 0:00:27.7]} 66. Rd6
{[%clk 0:00:06.4]} 66... Kf7 {[%clk 0:00:28.8]} 67. Rd5 {[%clk 0:00:06.2]} 67...
Bf3 {[%clk 0:00:27.2]} 68. Rd3 {[%clk 0:00:05.7]} 68... Bg4 {[%clk 0:00:26.3]}
69. Rd5 {[%clk 0:00:03.7]} 69... g6 {[%clk 0:00:26.7]} 70. Rd6 {[%clk
0:00:01.9]} 70... Be5 {[%clk 0:00:25.4]} 0-1

[Event "*** Titled Tuesday Blitz"]
[Site "Chess.com"]
[Date "2018.12.04"]
[Round "2"]
[White "c63_amg"]
[Black "Firouzja2003"]
[Result "0-1"]
[WhiteElo "2613"]
[BlackElo "3009"]
[TimeControl "180+2"]
[EndTime "13:17:28 PST"]
[Termination "Firouzja2003 won by resignation"]

1. e4 {[%clk 0:03:01.9]} 1... c5 {[%clk 0:03:00.8]} 2. Nf3 {[%clk 0:03:02.8]}
2... d6 {[%clk 0:03:02.4]} 3. d4 {[%clk 0:03:04.3]} 3... cxd4 {[%clk 0:03:04.3]}
4. Qxd4 {[%clk 0:03:05.7]} 4... Nc6 {[%clk 0:03:03.5]} 5. Bb5 {[%clk 0:03:06.9]}
5... Bd7 {[%clk 0:03:04.8]} 6. Bxc6 {[%clk 0:03:07.8]} 6... Bxc6 {[%clk
0:03:04.4]} 7. Nc3 {[%clk 0:03:09]} 7... Nf6 {[%clk 0:03:02.6]} 8. Bg5 {[%clk
0:03:10.3]} 8... e6 {[%clk 0:03:03.7]} 9. O-O-O {[%clk 0:03:11.6]} 9... Be7
{[%clk 0:03:04.6]} 10. Rhe1 {[%clk 0:03:13]} 10... h6 {[%clk 0:03:00.8]} 11. Bh4
{[%clk 0:03:09.2]} 11... Qc7 {[%clk 0:02:53.3]} 12. Kb1 {[%clk 0:03:07.7]} 12...
O-O {[%clk 0:02:50.6]} 13. Qd2 {[%clk 0:02:37.6]} 13... b5 {[%clk 0:02:45.3]}
14. Bxf6 {[%clk 0:02:29.6]} 14... Bxf6 {[%clk 0:02:43.5]} 15. Qxd6 {[%clk
0:02:31]} 15... Qb7 {[%clk 0:02:37.8]} 16. Ne5 {[%clk 0:02:25.5]} 16... Rac8
{[%clk 0:02:30.1]} 17. Nxc6 {[%clk 0:02:04.9]} 17... Rxc6 {[%clk 0:02:30.1]} 18.
Qd7 {[%clk 0:02:06.4]} 18... Rc7 {[%clk 0:02:19]} 19. Qxb5 {[%clk 0:02:05.5]}
19... Bxc3 {[%clk 0:02:19.8]} 20. Qxb7 {[%clk 0:01:54.6]} 20... Rxb7 {[%clk
0:02:21.7]} 0-1

[Event "*** Titled Tuesday Blitz"]
[Site "Chess.com"]
[Date "2018.12.04"]
[Round "2"]
[White "HanSchut"]
[Black "sergeikim"]
[Result "1-0"]
[WhiteElo "2313"]
[BlackElo "2424"]
[TimeControl "180+2"]
[EndTime "13:17:46 PST"]
[Termination "HanSchut won by checkmate"]

1. e4 {[%clk 0:03:01.9]} 1... e5 {[%clk 0:03:00.4]} 2. Nf3 {[%clk 0:03:02.6]}
2... Nc6 {[%clk 0:03:01.3]} 3. Bc4 {[%clk 0:03:04.1]} 3... Bc5 {[%clk
0:03:01.3]} 4. b4 {[%clk 0:03:04.6]} 4... Bxb4 {[%clk 0:03:01.6]} 5. c3 {[%clk
0:03:05.8]} 5... Ba5 {[%clk 0:03:03.2]} 6. d4 {[%clk 0:03:07.3]} 6... d6 {[%clk
0:03:04.3]} 7. Qb3 {[%clk 0:03:08.3]} 7... Qd7 {[%clk 0:03:03.8]} 8. O-O {[%clk
0:03:08.5]} 8... Bb6 {[%clk 0:03:04.7]} 9. Nbd2 {[%clk 0:03:09.2]} 9... Na5
{[%clk 0:02:58.5]} 10. Qc2 {[%clk 0:03:06.8]} 10... Nxc4 {[%clk 0:02:58.2]} 11.
Nxc4 {[%clk 0:03:08.7]} 11... exd4 {[%clk 0:02:56.7]} 12. cxd4 {[%clk
0:03:10.6]} 12... Ne7 {[%clk 0:02:54.7]} 13. a4 {[%clk 0:03:11.3]} 13... c6
{[%clk 0:02:51.8]} 14. Ba3 {[%clk 0:03:11.9]} 14... Bc7 {[%clk 0:02:51.1]} 15.
e5 {[%clk 0:03:13.4]} 15... d5 {[%clk 0:02:49.1]} 16. Nd6+ {[%clk 0:03:01.7]}
16... Bxd6 {[%clk 0:02:41.6]} 17. exd6 {[%clk 0:02:59.5]} 17... Ng6 {[%clk
0:02:38.7]} 18. Rfe1+ {[%clk 0:02:55.9]} 18... Kf8 {[%clk 0:02:38.6]} 19. h4
{[%clk 0:02:35.7]} 19... h5 {[%clk 0:02:28.9]} 20. Re5 {[%clk 0:02:15.4]} 20...
f6 {[%clk 0:02:20.5]} 21. Qxg6 {[%clk 0:02:06.7]} 21... fxe5 {[%clk 0:02:20.7]}
22. Nxe5 {[%clk 0:02:04.1]} 22... Qg4 {[%clk 0:02:10.9]} 23. Qf7# {[%clk
0:01:53.5]} 1-0

[Event "*** Titled Tuesday Blitz"]
[Site "Chess.com"]
[Date "2018.12.04"]
[Round "2"]
[White "2Tilted"]
[Black "matiss90"]
[Result "0-1"]
[WhiteElo "2276"]
[BlackElo "2424"]
[TimeControl "180+2"]
[EndTime "13:18:19 PST"]
[Termination "matiss90 won by checkmate"]

1. d4 {[%clk 0:03:01.9]} 1... Nf6 {[%clk 0:03:00.8]} 2. c4 {[%clk 0:03:03]} 2...
g6 {[%clk 0:03:01.8]} 3. Nc3 {[%clk 0:03:04.3]} 3... Bg7 {[%clk 0:03:02.9]} 4.
e4 {[%clk 0:03:05.8]} 4... O-O {[%clk 0:03:04.8]} 5. Be2 {[%clk 0:03:07.3]} 5...
d6 {[%clk 0:03:05.9]} 6. Nf3 {[%clk 0:03:08.6]} 6... Na6 {[%clk 0:03:07.1]} 7.
O-O {[%clk 0:03:09.2]} 7... e5 {[%clk 0:03:08.3]} 8. Be3 {[%clk 0:03:10.6]} 8...
Ng4 {[%clk 0:03:09]} 9. Bg5 {[%clk 0:03:11.6]} 9... Qe8 {[%clk 0:03:10.4]} 10.
Nd5 {[%clk 0:03:10.8]} 10... h6 {[%clk 0:03:03.1]} 11. Be7 {[%clk 0:03:07.6]}
11... c6 {[%clk 0:02:46.3]} 12. Bxf8 {[%clk 0:03:07.1]} 12... Kxf8 {[%clk
0:02:40.6]} 13. Nc3 {[%clk 0:03:08]} 13... h5 {[%clk 0:02:34.9]} 14. dxe5 {[%clk
0:03:02]} 14... dxe5 {[%clk 0:02:29.7]} 15. Qd6+ {[%clk 0:03:00.4]} 15... Kg8
{[%clk 0:02:30]} 16. h3 {[%clk 0:02:58.8]} 16... Nh6 {[%clk 0:02:29.2]} 17. c5
{[%clk 0:02:58.6]} 17... Be6 {[%clk 0:02:20.3]} 18. Bxa6 {[%clk 0:02:58]} 18...
Rd8 {[%clk 0:02:18.2]} 19. Qxd8 {[%clk 0:02:31.3]} 19... Qxd8 {[%clk 0:02:18.5]}
20. Bxb7 {[%clk 0:02:30.6]} 20... Qd7 {[%clk 0:02:18.5]} 21. Ba6 {[%clk
0:02:30.6]} 21... Bxh3 {[%clk 0:02:18.9]} 22. gxh3 {[%clk 0:02:27.7]} 22... Qxh3
{[%clk 0:02:19.5]} 23. Be2 {[%clk 0:02:29]} 23... Ng4 {[%clk 0:02:18]} 24. Rfd1
{[%clk 0:02:22.6]} 24... Bh6 {[%clk 0:02:18.8]} 25. Rd3 {[%clk 0:02:14.6]} 25...
Bf4 {[%clk 0:02:15]} 26. Nd1 {[%clk 0:01:56.4]} 26... Bh2+ {[%clk 0:02:05.5]}
27. Kh1 {[%clk 0:01:55.9]} 27... Bg3+ {[%clk 0:02:06.6]} 28. Kg1 {[%clk
0:01:56.3]} 28... Bxf2+ {[%clk 0:02:07.8]} 29. Nxf2 {[%clk 0:01:56.1]} 29...
Qg3+ {[%clk 0:02:08.9]} 30. Kh1 {[%clk 0:01:56.6]} 30... Nxf2# {[%clk 0:02:10]}
0-1